bitfinex-derivatives/quotes_ETHF0:USTF0_20210111
["timestamp","ask_amount","ask_price","bid_price","bid_amount"]
[1610396594348,4.00959,975.13,975.05,1.55933502]
[1610396594750,4.00959,975.13,974.97,1.55932367]
[1610396595149,4.00959,975.13,974.77,1.5597125]
[1610396595350,4.00959,975.13,974.7,1.55976816]
[1610396595550,79.8842,975.14,974.7,1.55976816]
[1610396595953,79.8842,975.14,974.66,1.55998015]
[1610396596149,79.8842,975.14,973.96,2.435]
[1610396596150,79.8842,975.14,974.5,1.56027465]
[1610396596350,4.00959,974.51,974.5,1.56027465]
[1610396596551,5.98459,974.51,974.23,1.56049686]
[1610396596750,5.98459,974.51,973.94,1.87269617]
[1610396597150,5.98459,974.51,973.91,1.87265592]
[1610396597551,5.98459,974.51,973.88,1.87288781]
[1610396597751,5.98459,974.51,973.29,3.74577563]
[1610396597752,5.98459,974.51,973.76,1.87301695]
[1610396598155,5.98459,974.51,973.82,1.87303839]
[1610396598352,1.975,974.51,973.8,1.87286089]
[1610396598654,1.975,974.51,973.82,1.87294722]
[1610396599054,1.975,974.51,973.98,1.87270303]
[1610396599652,1.975,974.51,973.89,1.87264701]
[1610396600054,1.975,974.51,973.94,1.87276861]
[1610396600352,4.00959,974.4,973.98,1.8728374]
[1610396600652,4.00959,974.4,973.96,1.87279935]
[1610396601055,4.00959,974.4,974.36,0.93644384]
[1610396601256,4.00959,974.4,974.01,1.87285113]
[1610396601654,4.00959,974.4,974.3,1.24853756]
[1610396602053,4.00959,974.4,974.31,1.24852771]
[1610396602253,4.00959,974.4,974.39,0.93639659]
[1610396602653,1.975,974.51,974.31,1.2485322]
[1610396602854,2.0594,975.89,974.3,1.24854724]
[1610396603255,4.05859837,976.07,974.76,0.31211756]
[1610396603755,4.05859837,976.07,974.58,2.119]
[1610396603756,4.06472072,976.41,975.12,0.31202033]
[1610396603955,4.06914075,976.53,975.24,0.31198317]
[1610396604357,4.00959,975.59,975.52,4.00959]
[1610396604553,4.00959,975.59,975.28,0.31196476]
[1610396604755,4.00959,975.59,975.43,0.31195018]
[1610396605361,4.00959,975.59,975.41,0.31194488]
[1610396605757,4.00959,975.59,975.4,0.31195119]
[1610396606258,4.00959,975.59,975.41,0.31192511]
[1610396606456,4.00959,975.42,975.41,0.31192511]
[1610396606657,4.00959,975.42,975.4,0.31191979]
[1610396606856,4.00959,975.42,975.01,1.55959893]
[1610396606857,4.00959,975.42,975.41,0.3119246]
[1610396607058,4.00959,975.42,975.32,7.381e-05]
[1610396607256,4.00959,975.42,975.22,0.83764762]
[1610396607457,4.00959,975.42,974.97,1.24776399]
[1610396607858,4.00959,975.42,974.95,1.24783447]
[1610396608258,4.00959,975.42,974.81,1.2479852]
[1610396608457,4.00959,975.05,974.85,4.00959]
[1610396608972,4.00959,975.05,974.93,1.24796365]
[1610396609372,4.00959,975.05,974.91,1.24787189]
[1610396609777,4.00959,975.05,974.77,1.2479894]
[1610396610162,4.00959,975.05,974.54,1.24815997]
[1610396610163,6.11459,975.05,974.54,1.24815997]
[1610396610380,4.00959,974.55,974.54,1.24815997]
[1610396610559,4.00959,974.55,974.43,1.24838331]
[1610396610762,4.00959,974.55,974.42,1.24842301]
[1610396611159,4.00959,974.55,974.44,1.24827793]
[1610396611362,4.00959,974.55,974.33,1.24833042]
[1610396611759,4.00959,974.55,974.26,1.24849225]
[1610396611960,4.00959,974.55,973.58,3.12123063]
[1610396611961,4.00959,974.55,974.25,1.24861157]
[1610396612360,2.105,975.05,974.3,1.248576]
[1610396612560,2.0211,975.04,974.3,1.248576]
[1610396612767,2.105,975.05,974.3,1.248576]
[1610396612962,2.105,975.05,974.27,2.452]
[1610396613760,4.1483,975.05,974.16,1.24876606]
[1610396613962,2.105,975.05,974.11,1.24872399]
[1610396614361,4.00959,974.44,974.42,4.00959]
[1610396614760,4.00959,974.44,974.31,1.24854558]
[1610396614960,4.00959,974.44,974.35,1.2485375]
[1610396615160,2.241,974.78,974.35,1.2485375]
[1610396615362,2.241,974.78,974.39,1.56047303]
[1610396615562,2.241,974.78,974.59,1.24827281]
[1610396615761,2.105,975.05,974.59,1.24827281]
[1610396615963,10.53412301,976.18,974.62,1.24820353]
[1610396616163,6.1368,976.01,974.62,1.24820353]
[1610396616362,6.1368,976.01,975.23,4.00959]
[1610396617364,58.3861,976.45,975.33,0.31193993]
[1610396617565,58.3861,976.45,975.28,0.31192618]
[1610396617764,60.0691,976.45,975.28,0.31192618]
[1610396617965,60.0691,976.45,975.27,0.31193122]
[1610396618166,60.0691,976.45,975.3,0.31190582]
[1610396618366,60.0691,976.45,975.2,0.52421747]
[1610396618568,4.00959,975.31,974.98,0.93584296]
[1610396618969,4.00959,975.31,974.93,0.935929]
[1610396619170,4.00959,975.31,974.82,0.93595923]
[1610396619568,4.00959,975.31,974.78,0.93599681]
[1610396619969,4.00959,975.31,974.66,1.676]
[1610396619970,4.00959,975.31,974.76,0.93609904]
[1610396620370,4.00959,975.31,974.77,0.93608321]
[1610396620569,2.206,975.47,974.77,0.93608321]
[1610396620770,2.206,975.47,974.69,0.93612627]
[1610396620970,2.206,975.47,974.65,0.93616896]
[1610396621774,2.206,975.47,974.63,0.93617498]
[1610396621972,2.206,975.47,974.51,0.93619532]
[1610396622371,2.206,975.47,974.54,0.93629929]
[1610396622772,2.206,975.47,974.45,0.93625612]
[1610396622972,2.206,975.47,974.52,0.93622813]
[1610396623773,2.0779,975.63,974.51,0.93622441]
[1610396623974,2.0779,975.63,974.54,0.93620865]
[1610396624174,62.5267,975.8,974.54,0.93620865]
[1610396624574,62.5267,975.8,974.46,1.24826061]
[1610396624575,4.00959,974.55,974.46,1.24826061]
[1610396624975,1.973,975.22,974.48,1.24822424]
[1610396625179,1.973,975.22,974.78,0.93598177]
[1610396625578,1.973,975.22,974.37,2.102]
[1610396625579,1.973,975.22,974.82,0.93599846]
[1610396625777,1.973,975.22,974.85,0.93595881]
[1610396626178,1.973,975.22,974.87,0.93596582]
[1610396626377,2.33154778,976.33,974.87,0.93596582]
[1610396626579,4.00959,975.69,975.08,4.00959]
[1610396626779,1.616,975.69,975.07,0.93584949]
[1610396627182,1.616,975.69,975.13,0.9357373]
[1610396627378,1.616,975.69,975.13,3.0807373]
[1610396627580,1.616,975.69,975.14,0.9357167]
[1610396627780,2.0777,976.21,975.13,2.145]
[1610396627781,2.0538,975.84,975.13,2.145]
[1610396627981,69.3703,975.65,975.13,2.145]
[1610396628181,2.0242,975.64,975.13,2.145]
[1610396628379,4.4492,975.64,974.84,0.9358345]
[1610396628580,4.4492,975.64,972.0,5.9768]
[1610396628581,4.00959,975.14,974.7,0.31206236]
[1610396628980,4.00959,975.14,974.65,0.31208617]
[1610396629381,4.00959,975.14,974.46,0.31211914]
[1610396629580,4.00959,975.14,974.07,1.56059572]
[1610396629581,4.00959,975.14,974.47,0.31212801]
[1610396630082,4.00959,975.14,974.42,0.31212851]
[1610396630482,4.00959,974.44,974.41,0.31215203]
[1610396630683,4.00959,974.44,974.38,0.31217748]
[1610396631084,4.00959,974.44,974.37,0.3122313]
[1610396631485,4.00959,974.44,974.32,0.31223571]
[1610396631685,4.00959,974.44,974.22,0.31226284]
[1610396632087,2.071,974.65,974.25,0.31225375]
[1610396632486,72.4671,975.08,974.34,0.31224537]
[1610396632687,72.4671,975.08,974.38,0.31222563]
[1610396633088,72.4671,975.08,974.4,0.31222467]
[1610396633490,72.4671,975.08,974.44,0.31220146]
[1610396633689,72.4671,975.08,974.43,0.31220932]
[1610396633891,74.1011,975.08,974.43,0.31220932]
[1610396634091,74.1011,975.08,974.38,0.31220536]
[1610396634491,4.00959,974.39,974.38,0.31220536]
[1610396634694,4.00959,974.39,974.37,0.31221043]
[1610396635093,4.00959,974.39,974.31,0.62439433]
[1610396635293,1.875,974.8,974.31,0.62439433]
[1610396635693,1.875,974.8,974.46,0.31219358]
[1610396636493,4.00959,974.47,974.42,0.31220111]
[1610396636993,4.00959,974.47,974.44,0.31219634]
[1610396637393,4.00959,974.47,974.42,0.31219926]
[1610396637594,4.00959,974.47,974.03,1.56099632]
[1610396637595,4.00959,974.47,974.31,0.31222836]
[1610396637995,4.00959,974.47,974.21,0.31224669]
[1610396638396,4.00959,974.47,974.17,0.31225529]
[1610396638595,1.875,974.8,974.17,0.31225529]
[1610396638596,4.00959,974.18,974.17,0.31225529]
[1610396638796,4.00959,974.18,974.15,0.31226525]
[1610396638996,4.00959,974.18,974.08,0.31228897]
[1610396639397,4.00959,974.18,973.98,0.31229779]
[1610396639898,4.00959,974.18,973.91,0.31232058]
[1610396640297,4.00959,974.18,973.86,0.31237849]
[1610396640497,4.00959,973.87,973.86,0.31237849]
[1610396640697,4.00959,973.87,973.82,0.31236635]
[1610396640897,4.00959,973.87,973.83,0.31237183]
[1610396641298,4.00959,973.87,973.82,0.31236623]
[1610396641697,4.00959,973.87,973.43,1.56183114]
[1610396641698,4.00959,973.87,973.77,0.31236541]
[1610396641998,4.00959,973.87,973.76,0.31239015]
[1610396642404,4.00959,973.87,973.77,0.31240143]
[1610396642799,4.00959,973.87,973.7,0.31240913]
[1610396643003,4.00959,973.87,973.58,0.31245362]
[1610396643403,4.00959,973.87,973.52,0.31246116]
[1610396643603,4.00959,973.87,973.37,0.31252571]
[1610396643906,9.0561,973.85,973.37,0.31252571]
[1610396644106,9.0561,973.85,972.98,1.56262854]
[1610396644107,9.0561,973.85,973.29,0.31253728]
[1610396644307,9.0561,973.85,973.18,0.31257959]
[1610396644507,4.00959,973.19,973.18,0.31257959]
[1610396644707,4.00959,973.19,973.13,0.31260325]
[1610396645118,4.00959,973.19,973.06,0.31261432]
[1610396645311,4.00959,973.19,972.77,1.25045729]
[1610396645312,4.00959,973.19,973.09,0.31259269]
[1610396645719,4.00959,973.19,973.18,0.31258637]
[1610396645930,1.944,973.36,973.17,0.31258501]
[1610396646414,6.4762,974.09,973.26,0.31255907]
[1610396646613,6.4762,974.09,972.87,1.56279533]
[1610396646614,4.00959,973.27,973.18,0.93760409]
[1610396646811,2.024,973.7,973.18,0.93760409]
[1610396647012,2.024,973.7,973.44,0.31252135]
[1610396647213,2.024,973.7,973.46,0.31250955]
[1610396647614,2.024,973.7,973.53,0.31248138]
[1610396648012,2.024,973.7,973.43,0.62496275]
[1610396648013,85.2153,974.2,973.6,0.3124747]
[1610396648213,5.9738,974.32,973.6,0.3124747]
[1610396648414,5.9738,974.32,973.65,0.31245082]
[1610396648615,4.00959,973.67,973.59,0.62486645]
[1610396648915,5.9738,974.32,973.71,0.31244284]
[1610396649124,2.29513655,974.98,973.71,0.31244284]
[1610396649323,2.29559453,975.04,973.77,0.31241611]
[1610396649516,2.29559453,975.04,973.77,2.61941611]
[1610396649717,6.4312,975.23,974.08,0.31232659]
[1610396649916,2.2988487,975.36,974.08,2.55332659]
[1610396650117,2.3011383,975.57,974.3,0.3122806]
[1610396650315,2.3011383,975.57,974.3,1.9192806]
[1610396650516,4.00959,974.31,974.3,1.9192806]
[1610396650717,1.582,975.33,974.3,1.607]
[1610396651921,1.582,975.33,974.33,0.31226882]
[1610396652512,1.582,975.33,974.48,0.31225129]
[1610396652909,1.582,975.33,974.41,0.3122821]
[1610396653110,2.03,975.32,974.3,1.607]
[1610396653309,1.582,975.33,974.3,1.607]
[1610396654612,4.00959,974.31,974.3,1.607]
[1610396655411,4.00959,974.31,974.08,2.55334378]
[1610396655614,4.00959,974.31,974.08,2.241]
[1610396655814,4.00959,974.31,974.05,0.31233899]
[1610396656014,4.00959,974.31,973.99,0.31237527]
[1610396656214,4.00959,974.31,973.96,0.31238371]
[1610396656615,4.00959,973.97,973.96,0.31238371]
[1610396656815,4.00959,973.97,973.77,0.31246477]
[1610396657015,4.00959,973.97,973.47,0.31249974]
[1610396657414,4.00959,973.97,973.43,0.31254293]
[1610396657816,4.00959,973.97,973.26,0.31259042]
[1610396658016,4.00959,973.97,973.2,0.31258748]
[1610396658515,4.00959,973.21,973.14,0.31261729]
[1610396658916,4.00959,973.21,972.98,0.31264551]
[1610396659115,4.00959,973.21,972.69,1.25058205]
[1610396659116,4.00959,973.21,972.9,0.31266801]
[1610396659518,4.00959,973.21,972.86,0.31266999]
[1610396659916,4.00959,973.21,972.93,0.31267439]
[1610396660118,4.00959,973.21,972.95,0.31267668]
[1610396660520,4.00959,972.96,972.93,0.31267379]
[1610396660920,4.00959,972.96,972.95,0.31268109]
[1610396661518,4.00959,972.96,972.82,0.93799036]
[1610396661919,4.00959,972.96,972.94,0.62530171]
[1610396662120,4.00959,972.96,972.86,0.93794322]
[1610396662521,4.00959,972.96,972.95,4.00959]
[1610396662920,4.00959,972.96,972.88,0.93793944]
[1610396663121,4.00959,972.96,972.86,0.93794414]
[1610396663521,4.00959,972.96,972.92,0.62526857]
[1610396663922,4.00959,972.96,972.82,3.25990285]
[1610396663923,4.00959,972.96,972.87,0.62537855]
[1610396664122,4.00959,972.96,972.91,0.31269193]
[1610396664922,4.00959,972.96,972.33,1.87625573]
[1610396664923,4.00959,972.96,972.83,0.31269382]
[1610396665325,4.00959,972.96,972.78,0.31271111]
[1610396665723,4.00959,972.96,972.87,0.31268695]
[1610396666024,4.00959,972.96,972.91,0.31267998]
[1610396666425,4.00959,972.96,972.88,0.62534652]
[1610396666624,4.00959,972.96,972.95,4.00959]
[1610396666824,4.00959,972.96,972.9,0.62534133]
[1610396667025,4.00959,972.96,972.91,0.62537187]
[1610396667424,4.00959,972.96,972.9,0.62536093]
[1610396667826,4.00959,972.96,972.92,0.62537452]
[1610396668027,4.00959,972.96,972.9,0.62539335]
[1610396668428,4.00959,972.96,972.93,0.31271535]
[1610396668627,4.00959,972.96,972.91,0.31271487]
[1610396669028,4.00959,972.96,972.84,0.31272625]
[1610396669328,4.00959,972.96,972.83,0.31273714]
[1610396669729,4.00959,972.96,972.81,0.31273722]
[1610396670129,4.00959,972.96,972.82,0.31274437]
[1610396670529,4.00959,972.96,972.75,0.31278916]
[1610396670730,4.00959,972.76,972.71,0.31279254]
[1610396671229,4.00959,972.76,972.32,1.56396269]
[1610396671230,4.00959,972.76,972.67,0.31279252]
[1610396671429,4.00959,972.76,972.69,0.31279983]
[1610396671830,4.00959,972.76,972.61,0.31282042]
[1610396672230,4.00959,972.76,972.55,0.31285897]
[1610396672430,4.00959,972.76,972.16,1.56429483]
[1610396672431,4.00959,972.76,972.45,0.31288716]
[1610396672629,4.00959,972.46,972.45,0.31288716]
[1610396672832,4.00959,972.46,972.27,0.31294138]
[1610396673231,4.00959,972.46,972.16,0.31295737]
[1610396673430,4.00959,972.46,972.1,0.31295805]
[1610396673834,4.00959,972.46,972.13,0.31297644]
[1610396674239,4.00959,972.46,972.1,0.31299403]
[1610396674434,4.00959,972.46,971.95,0.31305186]
[1610396674633,4.00959,972.01,971.95,0.31305186]
[1610396674832,2.195,972.3,972.0,0.31301082]
[1610396675232,2.195,972.3,972.06,0.31301021]
[1610396675633,2.195,972.3,972.1,0.31301254]
[1610396676034,2.195,972.3,972.05,0.31302041]
[1610396676436,2.195,972.3,971.76,1.25208163]
[1610396676437,2.195,972.3,972.02,0.3130173]
[1610396676634,4.00959,972.03,972.02,0.3130173]
[1610396676836,2.195,972.3,971.96,0.62601678]
[1610396677036,2.195,972.3,971.99,0.62599477]
[1610396677436,2.195,972.3,971.51,1.87798431]
[1610396677437,2.195,972.3,972.13,0.31298624]
[1610396677637,2.195,972.3,972.27,0.31293842]
[1610396677837,1.727,972.76,972.27,0.31293842]
[1610396678039,84.8951,973.33,972.07,2.88381526]
[1610396678040,84.8951,973.33,972.45,0.31288474]
[1610396678440,6.51,973.61,972.56,0.31284427]
[1610396678638,6.4052,973.85,972.63,0.31281331]
[1610396679038,6.4052,973.85,972.4,1.991]
[1610396679039,6.4156,973.84,972.69,0.31279667]
[1610396679241,8.5536,973.84,972.71,0.31279089]
[1610396679741,8.5536,973.84,972.77,0.31277201]
[1610396679940,8.5536,973.84,972.8,0.31277111]
[1610396680340,2.138,973.84,972.85,0.31273962]
[1610396680541,2.138,973.84,973.0,0.31272222]
[1610396680739,4.00959,973.52,973.45,4.00959]
[1610396681138,1.969,973.63,973.45,4.00959]
[1610396681538,1.969,973.63,973.23,0.31265562]
[1610396682341,1.969,973.63,973.22,0.31262866]
[1610396682541,1.969,973.63,973.12,0.31264118]
[1610396682741,4.00959,973.13,973.12,0.31264118]
[1610396682941,4.00959,973.13,973.03,0.31265605]
[1610396683341,4.00959,973.13,972.87,0.31273527]
[1610396683741,4.00959,973.13,972.59,0.3127922]
[1610396683942,6.38959,973.13,972.59,0.3127922]
[1610396684141,6.38959,973.13,972.5,0.6255844]
[1610396684142,6.38959,973.13,972.45,0.31286444]
[1610396684343,2.0375,973.12,972.45,0.31286444]
[1610396684544,2.0375,973.12,972.25,0.31292319]
[1610396684742,4.00959,972.26,972.14,0.31293751]
[1610396685142,4.00959,972.26,971.75,1.56468755]
[1610396685143,4.00959,972.26,971.98,0.62595102]
[1610396685544,4.00959,972.26,971.92,0.62596024]
[1610396685744,4.00959,972.26,971.78,0.62600227]
[1610396685942,2.082,972.25,971.78,0.62600227]
[1610396686143,2.082,972.25,971.76,0.62599918]
[1610396686543,2.082,972.25,971.77,2.0815]
[1610396686746,4.00959,971.78,971.77,2.0815]
[1610396686944,2.324,972.63,971.77,2.0815]
[1610396687147,2.324,972.63,971.77,0.62599957]
[1610396687545,2.324,972.63,971.9,0.62595528]
[1610396687747,2.324,972.63,971.8,0.93893293]
[1610396687748,2.38,973.13,972.06,0.62586132]
[1610396688147,2.38,973.13,972.15,0.62577703]
[1610396688546,2.38,973.13,972.22,0.6257546]
[1610396688745,2.38,973.13,972.34,4.00959]
[1610396689147,1.80968336,973.71,972.34,4.63529023]
[1610396689551,1.80994184,973.75,972.37,0.62564994]
[1610396689946,57.6364,974.16,972.34,6.40659]
[1610396689947,1.81066445,973.87,972.5,0.62557499]
[1610396690147,1.81066445,973.87,972.67,63.646]
[1610396690346,8.22147529,974.03,972.72,0.62546368]
[1610396690546,1.81510677,974.29,972.91,0.62536043]
[1610396690748,1.81510677,974.29,973.79,4.00959]
[1610396690949,1.81613571,974.38,973.01,0.62529487]
[1610396691147,1.81666152,974.41,973.03,0.62528624]
[1610396691946,1.81666152,974.41,972.97,1.539]
[1610396691947,1.81749605,974.5,973.12,0.62522371]
[1610396692148,1.8158507,974.55,973.18,0.6251905]
[1610396692347,1.8158507,974.55,973.18,2.4241905]
[1610396692548,1.8146859,974.66,973.28,0.62512541]
[1610396692747,4.00959,973.93,973.73,4.00959]
[1610396692947,4.00959,973.93,973.35,0.62506754]
[1610396693147,4.00959,973.93,973.4,0.6250671]
[1610396693347,4.00959,973.93,973.4,2.9170671]
[1610396693549,4.00959,973.93,973.4,2.292]
[1610396694751,1.56336963,974.21,973.4,2.292]
[1610396694752,4.00959,973.41,973.4,2.292]
[1610396695750,4.00959,973.41,972.91,0.31268446]
[1610396695950,4.00959,973.41,970.97,6.3934]
[1610396695951,4.00959,973.41,972.86,0.3127091]
[1610396696152,4.00959,973.41,972.79,0.31272589]
[1610396696450,4.00959,973.41,972.74,0.31274215]
[1610396696852,4.00959,972.75,972.69,0.31275705]
[1610396697053,4.00959,972.75,972.3,1.56378524]
[1610396697054,4.00959,972.75,972.63,0.31277132]
[1610396697452,4.00959,972.75,972.62,0.31283394]
[1610396697654,4.00959,972.75,972.23,1.56416969]
[1610396697655,4.00959,972.75,972.56,0.31282531]
[1610396698055,4.00959,972.75,972.55,0.3128359]
[1610396698456,4.00959,972.75,972.36,0.93847593]
[1610396698457,4.00959,972.75,972.49,0.31283977]
[1610396698658,4.00959,972.75,972.39,0.31287564]
[1610396698857,4.00959,972.4,972.39,0.31287564]
[1610396699056,4.00959,972.4,972.28,0.31290607]
[1610396699457,4.00959,972.4,972.2,0.31294109]
[1610396699658,4.00959,972.4,971.81,1.56470546]
[1610396699659,4.00959,972.4,972.06,0.31295927]
[1610396700059,4.00959,972.4,972.0,0.31293558]
[1610396700457,4.00959,972.4,971.9,0.62587116]
[1610396700458,4.00959,972.4,971.99,0.31294975]
[1610396700658,4.00959,972.4,972.01,0.31294379]
[1610396700858,4.00959,972.02,972.01,0.31294379]
[1610396701059,4.00959,972.02,971.92,0.62588774]
[1610396701262,4.00959,972.02,971.98,0.31295008]
[1610396701661,4.00959,972.02,971.97,0.31295515]
[1610396702260,61.6819,972.59,971.96,0.62586102]
[1610396702459,2.287,972.93,971.96,0.62586102]
[1610396702661,2.287,972.93,972.18,0.3129158]
[1610396702861,4.00959,972.57,972.39,4.00959]
[1610396703061,4.00959,972.57,972.29,0.31288982]
[1610396703261,4.00959,972.57,972.37,0.31285312]
[1610396703462,4.00959,972.57,972.07,2.151]
[1610396703463,4.00959,972.57,972.41,0.31284406]
[1610396703765,2.287,972.93,972.42,0.31283546]
[1610396703963,1.978,973.41,972.42,0.31283546]
[1610396704165,1.978,973.41,972.51,0.31280552]
[1610396704365,1.80808154,973.79,972.51,0.31280552]
[1610396704566,1.8090293,973.98,972.7,0.31278813]
[1610396704767,1.8090293,973.98,972.7,2.17078813]
[1610396704965,22.90610294,974.92,973.53,4.00959]
[1610396704966,1.81031046,974.16,973.53,4.00959]
[1610396705166,1.81215392,974.35,973.24,1.786]
[1610396705565,1.8128469,974.45,973.24,1.786]
[1610396705765,1.81357364,974.53,973.25,0.31261686]
[1610396706166,1.81378874,974.56,973.28,0.3125796]
[1610396706566,1.81499826,974.7,973.42,0.31255516]
[1610396706768,1.81587311,974.8,973.51,0.31251816]
[1610396706967,1.81587311,974.8,974.16,4.00959]
[1610396707168,1.81680416,974.92,974.16,4.00959]
[1610396707568,1.81833457,975.08,974.16,4.00959]
[1610396707768,1.81849904,975.11,974.16,4.00959]
[1610396708268,1.81849596,975.13,974.16,4.00959]
[1610396708669,1.81909989,975.2,974.16,4.00959]
[1610396708871,4.00959,974.23,974.03,82.73399]
[1610396709070,4.00959,974.23,974.03,4.00959]
[1610396709270,1.993,974.99,974.03,4.00959]
[1610396710976,4.00959,974.58,974.39,4.00959]
[1610396711274,1.993,974.99,974.39,4.00959]
[1610396711477,1.993,974.99,974.41,12.1952]
[1610396711675,1.82080584,975.42,974.41,12.1952]
[1610396712077,63.01196717,975.59,974.41,12.1952]
[1610396712478,61.1893,975.59,974.41,12.1952]
[1610396712679,7.98564942,975.98,974.39,4.00959]
[1610396712680,4.10774013,975.71,974.5,70.778]
[1610396712878,4.00959,975.47,975.28,4.00959]
[1610396713079,4.10863646,975.73,975.28,4.00959]
[1610396713479,4.11203443,975.79,975.11,1.843]
[1610396713679,2.28446357,975.79,975.11,1.843]
[1610396713879,4.11512249,975.83,975.11,1.843]
[1610396714081,4.11528013,975.74,975.11,1.843]
[1610396714480,4.11768068,975.67,975.11,1.843]
[1610396714680,4.12094211,975.68,975.11,1.843]
[1610396714880,4.00959,975.12,974.82,1.899]
[1610396716884,4.00959,974.83,974.82,1.899]
[1610396717284,4.00959,974.83,974.5,1.989]
[1610396717487,4.00959,974.83,974.23,2.085]
[1610396717684,4.00959,974.83,973.98,74.2349]
[1610396717883,6.07059,974.83,973.97,1.665]
[1610396718085,6.07059,974.83,973.82,0.31242362]
[1610396718486,6.07059,974.83,973.43,1.56211812]
[1610396718487,6.07059,974.83,973.7,0.31243904]
[1610396718887,4.00959,973.71,973.65,0.31247115]
[1610396719087,4.00959,973.71,973.54,0.3124862]
[1610396719488,4.00959,973.71,973.42,0.31252849]
[1610396719888,4.00959,973.71,973.23,0.3125993]
[1610396720288,4.00959,973.71,973.14,0.31261369]
[1610396720489,4.00959,973.71,972.98,0.31269308]
[1610396720890,4.00959,973.71,972.59,1.5634654]
[1610396720891,4.00959,972.99,972.83,0.31270181]
[1610396721092,4.00959,972.99,972.72,0.3127528]
[1610396721494,4.00959,972.99,972.54,0.31284174]
[1610396721893,4.00959,972.99,972.31,0.31287585]
[1610396722096,4.00959,972.99,972.26,0.31287633]
[1610396722492,73.9923,972.81,972.18,0.3129293]
[1610396722690,76.2853,972.81,972.18,0.3129293]
[1610396722892,4.00959,972.19,972.05,0.31297033]
[1610396723291,4.00959,972.19,971.92,0.62594808]
[1610396723491,4.00959,972.19,971.62,1.56487019]
[1610396723492,4.00959,972.19,971.91,0.62601541]
[1610396723690,2.293,972.81,971.94,61.1897]
[1610396723892,2.293,972.81,971.95,2.0445]
[1610396724091,2.137,973.06,972.12,0.62591026]
[1610396724292,1.82736826,973.5,972.12,0.62591026]
[1610396724494,4.11597854,973.8,972.42,0.62569478]
[1610396724692,30.0,973.71,972.42,2.30769478]
[1610396724892,30.0,973.71,972.53,0.62567967]
[1610396725092,30.0,973.71,972.42,1.65449918]
[1610396725493,4.11590264,973.55,972.42,1.65449918]
[1610396726293,4.11982393,973.62,972.42,1.65449918]
[1610396726694,11.57703262,973.82,972.42,1.65449918]
[1610396726695,4.1216008,973.64,972.42,1.65449918]
[1610396726893,4.00959,972.71,972.42,1.65449918]
[1610396728897,4.00959,972.43,972.42,1.65449918]
[1610396729898,4.00959,972.43,971.94,2.304]
[1610396730298,4.00959,972.43,971.15,2.5041423]
[1610396730299,2.034,973.04,971.64,1.25206728]
[1610396730498,2.034,973.04,971.88,73.6233]
[1610396730699,4.13032424,973.32,971.88,76.0713]
[1610396730899,4.00959,972.75,971.95,1.25169482]
[1610396731299,4.00959,972.75,972.08,1.25166339]
[1610396731499,4.00959,972.75,972.08,3.17566339]
[1610396731700,4.00959,972.75,972.1,1.25166681]
[1610396731898,4.00959,972.75,972.08,1.924]
[1610396732901,4.00959,972.09,972.08,1.924]
[1610396733701,4.00959,972.09,972.08,1.4349]
[1610396734503,34.00959,972.09,972.08,1.4349]
[1610396734704,73.9764,972.03,971.88,0.3436]
[1610396734905,4.00959,971.89,971.55,1.25234468]
[1610396735104,30.0,971.79,971.44,0.31319691]
[1610396735305,30.0,971.79,971.08,0.31325206]
[1610396735504,31.64,971.79,970.69,1.56626029]
[1610396735704,31.64,971.79,953.28,136.573]
[1610396735705,31.64,971.79,970.6,1.56635033]
[1610396736106,31.64,971.79,970.56,1.5664176]
[1610396736305,82.716,971.31,970.36,1.87970112]
[1610396736505,30.0,971.31,970.17,2.50626816]
[1610396736706,30.0,971.31,968.17,30.0]
[1610396736707,71.5436,971.14,970.1,2.50682089]
[1610396736907,4.00959,970.11,970.1,2.50682089]
[1610396737107,4.00959,970.11,969.9,3.13352611]
[1610396737108,4.00959,970.11,969.98,2.50677084]
[1610396737307,4.00959,970.11,969.49,3.405]
[1610396737308,4.00959,970.11,969.7,2.50770214]